fUST/lending_fUST_20250416
["ID","MTS","AMOUNT","RATE_DAILY","PERIOD"]
[358147687,1744769434171,-500.0,0.00041984,30]
[358147688,1744769434181,-500.0,0.00042,120]
[358147689,1744769434191,-627.298613,0.00042,2]
[358147690,1744769434201,-627.298613,0.00042,2]
[358147691,1744769434214,-160.0,0.00042001,120]
[358147692,1744769434224,-512.322449,0.00042072,16]
[358147693,1744769434234,-500.0,0.00042117,30]
[358147694,1744769434245,-500.0,0.00042234,31]
[358147695,1744769434255,-500.0,0.00042234,31]
[358147696,1744769434265,-500.0,0.00042234,31]
[358147697,1744769434275,-500.0,0.00042345,120]
[358147698,1744769434285,-1382.55039765,0.0004249,3]
[358147699,1744769434296,-366.02576248,0.0004249,3]
[358147700,1744769434306,-151.0,0.00042492,2]
[358147701,1744769434316,-158.938518,0.00042492,2]
[358147702,1744769434327,-627.298613,0.00042499,2]
[358147703,1744769434337,-627.298613,0.00042499,2]
[358147704,1744769434347,-627.298613,0.00042499,2]
[358147705,1744769434356,-627.298613,0.00042499,2]
[358147706,1744769434366,-248.08592898,0.000425,3]
[358147707,1744769434377,-2000.0,0.000425,120]
[358147708,1744769434386,-2000.0,0.000425,120]
[358147709,1744769434396,-2000.0,0.000425,120]
[358147710,1744769434406,-2000.0,0.000425,120]
[358147711,1744769434415,-2000.0,0.000425,120]
[358147712,1744769434425,-2000.0,0.000425,120]
[358147713,1744769434435,-2000.0,0.000425,120]
[358147714,1744769434444,-164.207869,0.000425,120]
[358147715,1744769434454,-164.207869,0.000425,120]
[358147716,1744769434464,-164.207869,0.000425,120]
[358147717,1744769434473,-164.207869,0.000425,120]
[358147718,1744769434483,-1016.97,0.000425,120]
[358147719,1744769434494,-151.0,0.000425,2]
[358147720,1744769434504,-151.0,0.000425,2]
[358147721,1744769434514,-677.75163,0.000425,120]
[358147722,1744769434523,-677.75163,0.000425,120]
[358147723,1744769434533,-677.75163,0.000425,120]
[358147724,1744769434542,-312.54626401,0.000425,120]
[358147725,1744769434552,-627.298613,0.000425,2]
[358147726,1744769434562,-627.298616,0.000425,2]
[358147727,1744769434571,-500.0,0.00042508,31]
[358147728,1744769434581,-500.0,0.00042508,31]
[358147729,1744769434591,-503.8950159,0.00042508,31]
[358147730,1744769434601,-500.0,0.00042601,30]
[358147731,1744769434610,-663.31589481,0.00042699,2]
[358147732,1744769434620,-500.0,0.000427,10]
[358147733,1744769434631,-151.0,0.00042703,2]
[358147734,1744769434641,-150.323,0.00042703,2]
[358147735,1744769434651,-151.0,0.00042761,2]
[358147736,1744769434660,-512.322449,0.00042762,17]
[358147737,1744769434670,-650.0,0.00042769,120]
[358147738,1744769434680,-513.42493115,0.00042773,10]
[358147739,1744769434690,-503.15116552,0.00042773,10]
[358147740,1744769434699,-504.86638143,0.00042773,10]
[358147741,1744769434709,-509.2187435,0.00042773,10]
[358147742,1744769434719,-500.0,0.00042773,2]
[358147743,1744769434728,-507.11485571,0.00042773,10]
[358147744,1744769434737,-595.06751278,0.00042773,10]
[358147745,1744769434747,-505.68456778,0.00042773,10]
[358147746,1744769434757,-507.58703965,0.00042773,10]
[358147747,1744769434768,-504.10713806,0.00042773,10]
[358147748,1744769434778,-500.0,0.00042773,10]
[358147749,1744769434788,-500.0,0.00042773,10]
[358147750,1744769434798,-650.0,0.00042779,120]
[358147751,1744769434807,-500.0,0.00042782,31]
[358147752,1744769434817,-500.0,0.00042782,31]
[358147753,1744769434826,-420.18615873,0.00042787,3]
[358147754,1744769434836,-151.0,0.00042788,2]
[358147755,1744769434856,-151.0,0.00042788,2]
[358147756,1744769434867,-11060.4031812,0.00042789,3]
[358147757,1744769434878,-2928.20609984,0.00042789,3]
[358147758,1744769434888,-650.0,0.00042789,120]
[358147759,1744769434898,-151.0,0.00042796,2]
[358147760,1744769434908,-151.0,0.00042796,2]
[358147761,1744769434918,-151.0,0.00042797,2]
[358147762,1744769434928,-157217.43136471,0.00042799,2]
[358147789,1744769438099,-500.0,0.0004063,31]
[358147791,1744769438109,-250.23454469,0.0004063,31]
[358147793,1744769438124,-500.0,0.0004063,31]
[358147796,1744769438140,-500.0,0.0004063,31]
[358147797,1744769438151,-500.0,0.0004063,31]
[358147800,1744769438161,-500.0,0.0004063,31]
[358147802,1744769438171,-500.0,0.0004063,31]
[358147804,1744769438181,-500.0,0.0004063,31]
[358147806,1744769438191,-34.47273563,0.0004063,31]
[358147808,1744769438204,-465.52726437,0.0004063,31]
[358147810,1744769438216,-500.0,0.0004063,31]
[358147812,1744769438226,-500.0,0.0004063,31]
[358147814,1744769438236,-500.0,0.0004063,31]
[358147816,1744769438246,-500.0,0.0004063,31]
[358147818,1744769438257,-500.0,0.0004063,31]
[358147821,1744769438268,-500.0,0.0004063,31]
[358147823,1744769438279,-500.0,0.0004063,31]
[358147825,1744769438289,-434.84982961,0.0004063,31]
[358147827,1744769438299,-500.0,0.0004063,31]
[358147829,1744769438310,-500.0,0.0004063,31]
[358147831,1744769438320,-500.0,0.0004063,31]
[358147833,1744769438330,-1684.13,0.00042789,10]
[358147835,1744769438339,-39498.21276752,0.00042799,2]
[358147913,1744769440352,-929.06,0.00042799,2]
[358147914,1744769440405,-1352.64554896,0.00042799,2]
[358147915,1744769440417,-650.39216423,0.00042799,2]
[358147916,1744769440458,-48347.50127488,0.00042799,2]
[358147918,1744769443282,-177.85285593,0.000362,120]
[358147919,1744769443296,-2261.75805476,0.00042799,2]
[358147920,1744769443308,-450.00106204,0.00042799,2]
[358147921,1744769443319,-1364.26537925,0.00042799,2]
[358147943,1744769446055,-443.970125,0.00042799,2]
[358147944,1744769446110,-4519.94841129,0.00042799,2]
[358147945,1744769446124,-353.0720424,0.00042799,2]
[358147946,1744769446165,-112611.74180496,0.00042799,2]
[358147947,1744769446175,-677.75163,0.00042799,120]
[358147948,1744769446186,-237.6583386,0.00042818,2]
[358147949,1744769446196,-4872.76026886,0.00042818,2]
[358147950,1744769446208,-500.0,0.00042824,30]
[358147951,1744769446221,-164.207869,0.00042904,120]
[358147952,1744769446231,-164.207869,0.00042904,120]
[358147953,1744769446241,-191.4415845,0.00042958,4]
[358147954,1744769446250,-1382.55039765,0.00042988,3]
[358147955,1744769446262,-366.02576248,0.00042988,3]
[358147956,1744769446272,-677.75163,0.00042989,120]
[358147958,1744769446282,-677.75163,0.00042998,120]
[358147960,1744769446293,-677.75163,0.00042998,120]
[358147962,1744769446303,-677.75163,0.00042998,120]
[358147963,1744769446312,-677.75163,0.00042998,120]
[358147964,1744769446322,-677.75163,0.00042998,120]
[358147965,1744769446331,-677.75163,0.00042998,120]
[358147966,1744769446341,-2000.0,0.00043,120]
[358147967,1744769446351,-2000.0,0.00043,120]
[358147968,1744769446360,-2000.0,0.00043,120]
[358147969,1744769446371,-2000.0,0.00043,120]
[358147970,1744769446381,-2000.0,0.00043,120]
[358147971,1744769446391,-2000.0,0.00043,120]
[358147972,1744769446401,-2000.0,0.00043,120]
[358147973,1744769446411,-2000.0,0.00043,120]
[358147974,1744769446421,-2000.0,0.00043,120]
[358147975,1744769446432,-2000.0,0.00043,120]
[358147976,1744769446442,-194.67457246,0.00043,7]
[358147977,1744769446451,-194.67457246,0.00043,7]
[358147978,1744769446462,-158.23,0.00043,120]
[358147979,1744769446472,-781.95,0.00043,120]
[358147980,1744769446482,-500.0,0.00043,120]
[358147981,1744769446491,-1000.0,0.00043,120]
[358147982,1744769446501,-164.207869,0.00043,120]
[358147983,1744769446511,-164.207869,0.00043,120]
[358147984,1744769446521,-164.207869,0.00043,120]
[358147985,1744769446531,-164.207869,0.00043,120]
[358147986,1744769446541,-164.207869,0.00043,120]
[358147987,1744769446551,-164.207869,0.00043,120]
[358147988,1744769446561,-164.207869,0.00043,120]
[358147989,1744769446571,-164.207873,0.00043,120]
[358147990,1744769446832,-677.75163,0.00043,120]
[358147991,1744769446842,-677.751639,0.00043,120]
[358147992,1744769446853,-312.54626401,0.00043,120]
[358147993,1744769446863,-300.0,0.00043,2]
[358147994,1744769446873,-172.0,0.00043,90]
[358147995,1744769446882,-500.0,0.00043014,2]
[358147996,1744769446892,-230.83943318,0.00043056,31]
[358147997,1744769446902,-500.0,0.00043056,31]
[358147998,1744769446911,-213.84311633,0.000433,2]
[358147999,1744769446921,-10250.65254905,0.000433,2]
[358148000,1744769446930,-500.0,0.00043317,30]
[358148001,1744769446940,-585.66282071,0.0004333,31]
[358148002,1744769446950,-160.0,0.0004337,120]
[358148003,1744769446960,-1382.55039765,0.0004339,3]
[358148004,1744769446970,-366.02576248,0.0004339,3]
[358148005,1744769446980,-1000.0,0.000434,7]
[358148006,1744769446990,-1000.0,0.000434,7]
[358148007,1744769446999,-1000.0,0.000434,7]
[358148008,1744769447009,-1000.0,0.000434,7]
[358148009,1744769447019,-1000.0,0.000434,7]
[358148010,1744769447029,-1000.0,0.000434,7]
[358148011,1744769447039,-1000.0,0.000434,7]
[358148012,1744769447048,-1000.0,0.000434,7]
[358148013,1744769447058,-1000.0,0.000434,7]
[358148014,1744769447067,-1000.0,0.000434,7]
[358148015,1744769447077,-500.0,0.00043408,30]
[358148016,1744769447086,-160.0,0.00043434,2]
[358148017,1744769447096,-512.322449,0.00043452,17]
[358148018,1744769447106,-21012.67123664,0.00043461,2]
[358148019,1744769447116,-1098.0,0.00043498,49]
[358148020,1744769447126,-2000.0,0.000435,90]
[358148021,1744769447135,-150.1,0.00043506,3]
[358148022,1744769447145,-158.48804126,0.00043589,30]
[358148023,1744769447155,-151.0,0.000436,17]
[358148024,1744769447164,-294.62881036,0.00043643,3]
[358148025,1744769447173,-305.075344,0.000437,120]
[358148026,1744769447182,-151.0,0.000437,11]
[358148027,1744769447191,-177.03674666,0.00043708,2]
[358148028,1744769447201,-183.74299183,0.00043708,2]
[358148029,1744769447211,-611.6,0.00043725,120]
[358148030,1744769447223,-151.0,0.00043725,3]
[358148031,1744769447233,-151.0,0.00043725,3]
[358148032,1744769447242,-151.0,0.00043725,3]
[358148033,1744769447253,-152.78235155,0.00043725,3]
[358148034,1744769447263,-151.0,0.00043725,3]
[358148035,1744769447272,-156.587,0.00043725,3]
[358148036,1744769447282,-162.380719,0.00043725,3]
[358148037,1744769447295,-168.3888056,0.00043725,3]
[358148038,1744769447306,-287.73047963,0.00043725,3]
[358148039,1744769447316,-420.90362762,0.00043725,3]
[358148040,1744769447325,-202.0,0.0004376,63]
[358148041,1744769447335,-200.95203504,0.000438,15]
[358148042,1744769447346,-151.0,0.000438,10]
[358148043,1744769447356,-151.0,0.000438,17]
[358148044,1744769447366,-1010.90095,0.000438,43]
[358148045,1744769447376,-886.25628914,0.00043807,30]
[358148046,1744769447387,-5530.2015906,0.00043825,3]
[358148047,1744769447396,-1464.10304992,0.00043825,3]
[358148048,1744769447406,-160.0,0.00043825,3]
[358148049,1744769447417,-160.0,0.00043826,5]
[358148050,1744769447426,-1020.08884492,0.00043835,120]
[358148051,1744769447436,-1191.27,0.00043835,120]
[358148052,1744769447446,-1191.27,0.00043835,120]
[358148053,1744769447455,-1191.27,0.00043835,120]
[358148054,1744769447466,-1191.27,0.00043835,120]
[358148055,1744769447475,-1191.27,0.00043835,120]
[358148056,1744769447487,-1191.3101189,0.00043835,120]
[358148057,1744769447497,-1739.9,0.00043835,120]
[358148058,1744769447507,-1739.9,0.00043835,120]
[358148059,1744769447516,-1739.9,0.00043835,120]
[358148060,1744769447526,-1739.9,0.00043835,120]
[358148061,1744769447537,-1739.9,0.00043835,120]
[358148062,1744769447547,-1739.9,0.00043835,120]
[358148063,1744769447558,-1739.9,0.00043835,120]
[358148064,1744769447568,-1739.9,0.00043835,120]
[358148065,1744769447579,-1739.9,0.00043835,120]
[358148066,1744769447588,-1739.9,0.00043835,120]
[358148067,1744769447598,-1739.9,0.00043835,120]
[358148068,1744769447607,-1739.9,0.00043835,120]
[358148069,1744769447617,-1739.9,0.00043835,120]
[358148070,1744769447627,-1739.9,0.00043835,120]
[358148071,1744769447636,-1739.9,0.00043835,120]
[358148072,1744769447646,-1739.9,0.00043835,120]
[358148073,1744769447655,-1739.9,0.00043835,120]
[358148074,1744769447665,-1739.9,0.00043835,120]
[358148075,1744769447675,-1739.9,0.00043835,120]
[358148076,1744769447684,-1739.9,0.00043835,120]
[358148077,1744769447694,-1739.9,0.00043835,120]
[358148078,1744769447704,-1739.9,0.00043835,120]
[358148079,1744769447714,-1739.9,0.00043835,120]
[358148080,1744769447724,-1740.12623879,0.00043835,120]
[358148081,1744769447733,-1423.54,0.00043835,120]
[358148082,1744769447743,-1423.54,0.00043835,120]
[358148083,1744769447753,-1423.54,0.00043835,120]
[358148084,1744769447763,-1423.54,0.00043835,120]
[358148085,1744769447773,-1423.54,0.00043835,120]
[358148086,1744769447783,-1423.54,0.00043835,120]
[358148087,1744769447793,-1423.54,0.00043835,120]
[358148088,1744769447804,-1423.54,0.00043835,120]
[358148089,1744769447815,-1423.54,0.00043835,120]
[358148090,1744769447826,-1423.54,0.00043835,120]
[358148091,1744769447836,-1423.54,0.00043835,120]
[358148092,1744769447847,-1214.79203541,0.00043835,120]
[358148093,1744769447863,-208.74796459,0.00043835,120]
[358148094,1744769447872,-1423.54,0.00043835,120]
[358148095,1744769447882,-1423.54,0.00043835,120]
[358148096,1744769447892,-1423.54,0.00043835,120]
[358148097,1744769447902,-1423.54,0.00043835,120]
[358148098,1744769447911,-257.09203541,0.00043835,120]
[358148100,1744769512564,2500.0,0.0001801,2]
[358148195,1744770632435,-300.0,0.00024593,2]
[358148197,1744770632445,-470.33070138,0.00024594,2]
[358148199,1744770632455,-19829.21098417,0.00024594,2]
[358148201,1744770632464,-465.26653507,0.00025823,2]
[358148203,1744770632474,-234.0252843,0.000259,6]
[358148205,1744770632484,-234.02528414,0.00026624,6]
[358148207,1744770632495,-420.0,0.00026654,2]
[358148208,1744770632504,-176.08897111,0.00027248,2]
[358148209,1744770632514,-17246.24587864,0.00027348,2]
[358148210,1744770632749,-5075.79162886,0.00027348,2]
[358148211,1744770632759,-234.02528414,0.00027348,7]
[358148212,1744770632768,-312.54626401,0.00028,10]
[358148213,1744770633038,-312.54626401,0.00028,10]
[358148214,1744770633049,-162.92125657,0.00028,2]
[358148215,1744770633062,-18714.95134655,0.00028,2]
[358148216,1744770633072,-398.64411472,0.00028071,2]
[358148217,1744770633082,-234.02528414,0.00028072,7]
[358148218,1744770633092,-506.31085189,0.000281,5]
[358148219,1744770633102,-500.0,0.000281,5]
[358148220,1744770633111,-503.29844841,0.000281,5]
[358148221,1744770633121,-265.62126752,0.000281,5]
[358148222,1744770633131,-500.0,0.000281,5]
[358148223,1744770633141,-500.0,0.000281,5]
[358148224,1744770633151,-503.3066949,0.000281,5]
[358148225,1744770633160,-501.66245575,0.000281,5]
[358148226,1744770633170,-234.02528414,0.00028797,8]
[358148227,1744770633180,-151.0,0.00028951,2]
[358148228,1744770633190,-5419.99369876,0.00028952,2]
[358148229,1744770633200,-500.0,0.00028959,2]
[358148230,1744770633210,-344.00849841,0.00028959,2]
[358148231,1744770633220,-500.0,0.00028959,2]
[358148232,1744770633229,-500.0,0.00028959,2]
[358148233,1744770633239,-500.0,0.00028959,2]
[358148234,1744770633249,-500.0,0.00028959,2]
[358148235,1744770633259,-425.25860243,0.00028959,2]
[358148236,1744770633269,-500.0,0.00028959,2]
[358148237,1744770633279,-500.0,0.00028959,2]
[358148238,1744770633288,-151.0,0.0002896,3]
[358148239,1744770633297,-5419.99369876,0.0002896,2]
[358148240,1744770633307,-33215.65499252,0.0002897,2]
[358148241,1744770633317,-5419.99369876,0.00028972,2]
[358148242,1744770633327,-158.38138238,0.00028973,5]
[358148243,1744770633337,-260.68796651,0.00028973,5]
[358148244,1744770633347,-500.0,0.00028973,5]
[358148245,1744770633357,-502.19431462,0.00028973,5]
[358148246,1744770633367,-500.0,0.00028973,5]
[358148247,1744770633376,-395.18542157,0.00028973,5]
[358148248,1744770633386,-501.24188084,0.00028973,5]
[358148249,1744770633396,-502.63329742,0.00028973,2]
[358148250,1744770633406,-155.916834,0.00028973,5]
[358148251,1744770633416,-353.96598048,0.00028973,5]
[358148252,1744770633426,-506.4741775,0.00028973,5]
[358148253,1744770633436,-169.25188873,0.00028973,2]
[358148254,1744770633446,-505.88955714,0.00028973,5]
[358148255,1744770633456,-521.64029754,0.00028973,5]
[358148256,1744770633466,-503.72667458,0.00028973,5]
[358148257,1744770633476,-501.29101128,0.00028973,5]
[358148258,1744770633487,-502.23535011,0.00028973,5]
[358148259,1744770633498,-505.79292028,0.00028973,5]
[358148260,1744770633508,-501.99129758,0.00028973,5]
[358148261,1744770633518,-368.30530455,0.00028973,5]
[358148262,1744770633528,-476.93352087,0.00028973,5]
[358148263,1744770633538,-500.0,0.00028973,5]
[358148264,1744770633547,-500.0,0.00028973,2]
[358148265,1744770633557,-501.10166664,0.00028973,2]
[358148266,1744770633568,-462.7984136,0.00028973,4]
[358148267,1744770633582,-502.96530789,0.00028973,5]
[358148268,1744770633593,-508.74366009,0.00028973,5]
[358148269,1744770633604,-33215.65499252,0.00028982,2]
[358148270,1744770633615,-5419.99369876,0.00028985,2]
[358148271,1744770633626,-33215.65499252,0.00028995,2]
[358148272,1744770633636,-33215.65499252,0.00028998,2]
[358148273,1744770633646,-151.0,0.00028998,2]
[358148274,1744770633656,-151.0,0.00028998,2]
[358148275,1744770633666,-151.0,0.00028998,2]
[358148276,1744770633676,-169.437908,0.00028998,7]
[358148277,1744770633686,-169.437908,0.00028998,7]
[358148278,1744770633695,-151.0,0.00028998,7]
[358148279,1744770633705,-234.02528414,0.00029521,8]
[358148280,1744770633715,-176.08897109,0.00029934,2]
[358148281,1744770633725,-255.79067201,0.0003,7]
[358148282,1744770633734,-303.0453186,0.0003,15]
[358148283,1744770633746,-895.71133199,0.0003,30]
[358148284,1744770633756,-234.02528414,0.00030245,9]
[358148285,1744770633765,-154.99871285,0.0003032,2]
[358148286,1744770633774,-234.02528414,0.00030969,9]
[358148287,1744770633784,-500.0,0.00031,5]
[358148288,1744770633793,-2840.80948423,0.00031,120]
[358148289,1744770633803,-234.02528414,0.00031693,10]
[358148290,1744770633813,-234.02528414,0.00032417,10]
[358148291,1744770633822,-176.08897109,0.00032621,2]
[358148292,1744770633831,-500.0,0.00032877,5]
[358148293,1744770633841,-940.03960159,0.00032899,2]
[358148294,1744770633851,-272.55198691,0.00032899,2]
[358148295,1744770633861,-2597.78,0.000329,30]
[358148296,1744770633871,-2614.03,0.000329,30]
[358148297,1744770633881,-234.02528414,0.00033141,11]
[358148298,1744770633891,-1043.12537996,0.00033579,5]
[358148299,1744770633901,-1000.0,0.00033579,5]
[358148300,1744770633911,-1000.0,0.00033579,5]
[358148301,1744770633921,-234.02528414,0.00033866,11]
[358148302,1744770633931,-504.08625684,0.00034247,5]
[358148303,1744770633942,-5419.99369876,0.00034442,2]
[358148304,1744770633951,-1000.0,0.00034452,5]
[358148305,1744770633961,-511.54844295,0.00034452,5]
[358148306,1744770633970,-1000.0,0.00034452,5]
[358148307,1744770633980,-1000.0,0.00034452,2]
[358148308,1744770633990,-234.02528414,0.0003459,12]
[358148309,1744770634001,-40350.48530141,0.00035,2]
[358148310,1744770634012,-176.08897109,0.00035307,2]
[358148311,1744770634022,-234.02528414,0.00035314,12]
[358148312,1744770634032,-151.0,0.00036,12]
[358148313,1744770634042,-234.02528414,0.00036038,13]
[358148314,1744770634052,-234.02528414,0.00036762,13]
[358148315,1744770634062,-2597.78,0.000374,30]
[358148316,1744770634074,-2614.03,0.000374,30]
[358148317,1744770634087,-234.02528414,0.00037486,13]
[358148318,1744770634103,-151.0,0.000376,18]
[358148319,1744770634116,-176.08897109,0.00037994,2]
[358148320,1744770634130,-234.02528414,0.0003821,14]
[358148321,1744770634141,-234.02528414,0.00038934,14]
[358148322,1744770634151,-503.88179927,0.00039125,5]
[358148323,1744770634162,-471.74244969,0.00039125,5]
[358148324,1744770634172,-500.0,0.00039125,5]
[358148325,1744770634182,-242.80011014,0.00039125,5]
[358148326,1744770634192,-151.0,0.000392,18]
[358148327,1744770634202,-234.02528414,0.00039659,15]
[358148328,1744770634213,-500.0,0.00039973,2]
[358148329,1744770634223,-151.0,0.00039973,14]
[358148330,1744770634232,-5419.99369876,0.0003998,3]
[358148331,1744770634242,-151.0,0.0003999,2]
[358148332,1744770634252,-151.0,0.0003999,2]
[358148333,1744770634261,-151.0,0.0003999,2]
[358148334,1744770634271,-169.437908,0.0003999,14]
[358148335,1744770634280,-169.437908,0.0003999,14]
[358148336,1744770634290,-169.378661,0.0003999,14]
[358148337,1744770634300,-32519.9621926,0.0003999,3]
[358148338,1744770634310,-837.59699578,0.0003999,3]
[358148339,1744770634320,-217889.68809988,0.0004,7]
[358148392,1744770638508,-500.0,0.00028959,2]
[358148394,1744770638518,-500.0,0.00028959,2]
[358148397,1744770638529,-304.39488072,0.00028959,2]
[358148399,1744770638538,-500.0,0.00028959,2]
[358148401,1744770638548,-500.0,0.00028959,2]
[358148403,1744770638558,-500.0,0.00028959,2]
[358148405,1744770638568,-500.0,0.00028959,2]
[358148406,1744770638579,-500.0,0.00028959,2]
[358148409,1744770638590,-1475.04955299,0.0004,7]
[358148423,1744770640528,-3778.42168717,0.0004,7]
[358148424,1744770640587,-16807.2857026,0.0004,7]
[358148425,1744770640598,-35508.04025061,0.0004,30]
[358148426,1744770640611,-17562.02974939,0.0004,30]
[358148427,1744770640622,-151.0,0.0004,2]
[358148428,1744770640632,-151.0,0.0004,2]
[358148429,1744770640643,-151.0,0.0004,2]
[358148430,1744770640654,-151.0,0.0004,2]
[358148431,1744770640665,-1480.0,0.0004,120]
[358148432,1744770640675,-169.437908,0.0004,14]
[358148433,1744770640684,-169.437908,0.0004,14]
[358148434,1744770640695,-12419.68030105,0.0004,5]
[358148435,1744770640704,-234.02528414,0.00040383,15]
[358148436,1744770640715,-176.08897109,0.0004068,28]
[358148437,1744770640725,-286.38,0.000407,7]
[358148438,1744770640735,-507.11779503,0.00040733,5]
[358148439,1744770640746,-500.0,0.00040733,5]
[358148440,1744770640757,-500.0,0.00040733,5]
[358148441,1744770640767,-500.0,0.00040733,5]
[358148442,1744770640778,-506.34657103,0.00040733,5]
[358148443,1744770640787,-443.04219635,0.00040733,5]
[358148444,1744770640798,-503.23364169,0.00040733,5]
[358148445,1744770640808,-500.0,0.00040733,5]
[358148446,1744770640818,-151.0,0.000408,15]
[358148447,1744770640828,-880.0,0.00041,2]
[358148448,1744770640838,-1702.0,0.00041,2]
[358148449,1744770640848,-500.0,0.00041036,30]
[358148450,1744770640858,-455.0,0.00041066,120]
[358148451,1744770640868,-455.0,0.00041076,120]
[358148452,1744770640878,-455.0,0.00041086,120]
[358148453,1744770640889,-500.0,0.00041096,2]
[358148454,1744770640899,-234.02528414,0.00041107,16]
[358148455,1744770640909,-500.0,0.00041189,30]
[358148456,1744770640919,-165.58599595,0.00041337,30]
[358148457,1744770640929,-500.0,0.0004135,30]
[358148458,1744770640939,-500.0,0.0004137,2]
[358148459,1744770640949,-500.0,0.00041415,30]
[358148460,1744770640959,-500.0,0.00041461,30]
[358148461,1744770640969,-500.0,0.00041492,30]
[358148462,1744770640979,-500.0,0.00041576,30]
[358148463,1744770640989,-500.0,0.00041605,30]
[358148464,1744770640999,-504.30974916,0.00041644,2]
[358148465,1744770641009,-2597.78,0.000417,30]
[358148466,1744770641019,-234.02528414,0.00041831,16]
[358148467,1744770641034,-500.0,0.00041848,30]
[358148468,1744770641044,-5419.99369876,0.0004189,3]
[358148469,1744770641055,-2614.03,0.000419,30]
[358148470,1744770641065,-500.0,0.00041901,30]
[358148471,1744770641075,-500.0,0.00041976,30]
[358148472,1744770641086,-5419.99369876,0.0004199,3]
[358148473,1744770641096,-41270.0,0.00042,120]
[358148474,1744770641106,-151.0,0.00042,2]
[358148475,1744770641117,-169.437908,0.00042,120]
[358148476,1744770641127,-169.437908,0.00042,120]
[358148477,1744770641138,-312.54626401,0.00042,120]
[358148478,1744770641148,-500.0,0.00042041,30]
[358148479,1744770641158,-500.0,0.00042186,30]
[358148480,1744770641169,-5419.99369876,0.0004219,3]
[358148481,1744770641179,-65493.59735942,0.000422,2]
[358148494,1744770643194,-500.0,0.00027999,2]
[358148495,1744770643205,-76.77980791,0.00027999,2]
[358148496,1744770643248,-423.22019209,0.00027999,2]
[358148497,1744770643259,-500.0,0.00027999,2]
[358148498,1744770643269,-500.0,0.00027999,2]
[358148499,1744770643278,-500.0,0.00027999,2]
[358148500,1744770643288,-500.0,0.00027999,2]
[358148501,1744770643298,-500.0,0.00027999,2]
[358148502,1744770643308,-500.0,0.00027999,2]
[358148503,1744770643317,-500.0,0.00027999,2]
[358148504,1744770643327,-288.06332751,0.00027999,2]
[358148525,1744771702607,151.0,0.00025,120]
[358148526,1744771732478,159.0,0.00023,30]
[358148552,1744771832478,-190.9351095,0.00024493,2]
[358148554,1744771832488,-250.0,0.00027899,2]
[358148556,1744771832498,-312.54626401,0.00028,10]
[358148558,1744771832507,-312.54626401,0.00028,10]
[358148561,1744771832517,-160.0,0.00028961,2]
[358148563,1744771832526,-447.3965824,0.00029574,2]
[358148566,1744771832536,-300.0,0.00029906,2]
[358148569,1744771832545,-300.0,0.00029906,2]
[358148571,1744771832555,-20244.1221736,0.00029907,2]
[358148573,1744771832564,-160.0,0.00030331,2]
[358148576,1744771832574,-503.89213441,0.000304,5]
[358148579,1744771832584,-204.77212364,0.000309,9]
[358148582,1744771832593,-160.0,0.00031701,2]
[358148585,1744771832603,-420.0,0.00032372,3]
[358148588,1744771832612,-500.0,0.00032877,5]
[358148591,1744771832622,-160.0,0.0003307,2]
[358148594,1744771832631,-500.0,0.00033097,7]
[358148597,1744771832641,-500.0,0.00033097,7]
[358148600,1744771832650,-500.0,0.00033097,7]